Cogmind - Beta 11 X8 @@@ ROGUE MODE // 2021.12.10 @ 20:58:53 Player: Judas Result: Destroyed by B-75 Beast with Heavy Plasma Cannon Performance ------------- Evolutions (4) 2000 Regions Visited (9) 1800 Robots Destroyed (97) 485 Value Destroyed (3265) 3265 Prototype IDs (27) 540 Alien Tech Used (0) 0 Bonus (1484) 1484 TOTAL SCORE: 9574 Bonus ------- High Alert Combat Kills 484 Entered Garrisons 200 Used RIF Installer 500 Aligned with FarCom 300 Cogmind --------- Core Integrity 0/850 Matter 99/300 Energy 9/100 System Corruption 3% Temperature Cool (12) Movement Core (800) Ox15 Location -6/Factory Parts ------- > --- POWER (1) -------- (None) > --- PROPULSION (4) --- (None) > --- UTILITY (6) ------ High-capacity Storage Unit Advanced Terrain Scan Processor Improved Salvage Targeting Computer > --- WEAPON (4) ------- Assault Rifle Gauss Rifle > --- INVENTORY (20) --- Micro Nuclear Core High-capacity Storage Unit Hacking Suite System Shield Remote Datajack Katana Peak State ------------ > --- POWER ------------ Light Angular Momentum Engine > --- PROPULSION ------- Medium Treads Armored Huge Wheel > --- UTILITY ---------- High-capacity Storage Unit Improved Salvage Targeting Computer Matter Filter Kinecellerator Weapon Cycler Trap Reconfigurator > --- WEAPON ----------- Gauss Rifle Advanced Assault Cannon Advanced Assault Cannon Advanced Assault Cannon > --- INVENTORY -------- Micro Nuclear Core High-capacity Storage Unit Advanced Terrain Scan Processor Hacking Suite System Shield Heavy Plasma Cannon Assault Rifle Gauss Rifle Advanced Assault Cannon Precision Grenade Launcher Remote Datajack Katana [Rating: 63] Favorites ----------- Power Ion Engine Engine Ion Engine Power Core Light Nuclear Core Propulsion Armored Huge Wheel Treads Light Treads Leg Aluminum Leg Wheel Armored Huge Wheel Utility High-capacity Storage Unit Device Improved Heat Sink Storage High-capacity Storage Unit Processor Improved Salvage Targeting Computer Weapon Advanced Assault Cannon Energy Gun Particle Gun Energy Cannon Improved EM Pulse Cannon Ballistic Gun Gauss Rifle Ballistic Cannon Advanced Assault Cannon Launcher Precision Grenade Launcher Build | -11 -10 -10 -10 -9 -8 -7 -7 -7 -6 ------- Run | Scr Mat Min Exi Min Mat Fac Gar Sto Fac Slots Evolved 8 | . . . . . 4 2 . . 2 Power . | . . . . . . . . . . Propulsion 2 | . . . . . 1 1 . . . Utility 4 | . . . . . 1 1 . . 2 Weapon 2 | . . . . . 2 . . . . Parts Attached 62 | 1 4 6 1 6 10 6 6 5 17 Power 10 | . . 1 . 1 3 . 1 1 3 Engine 6 | . . 1 . 1 1 . 1 . 2 Core 4 | . . . . . 2 . . 1 1 Reactor . | . . . . . . . . . . Propulsion 14 | . 2 2 . 2 3 3 1 . 1 Treads 7 | . 2 . . . 3 1 . . 1 Leg . | . . . . . . . . . . Wheel 7 | . . 2 . 2 . 2 1 . . Hover . | . . . . . . . . . . Flight . | . . . . . . . . . . Utility 11 | 1 1 1 1 . 1 2 . . 4 Device 7 | 1 . 1 . . 1 1 . . 3 Storage 2 | . 1 . 1 . . . . . . Processor 2 | . . . . . . 1 . . 1 Hackware . | . . . . . . . . . . Protection . | . . . . . . . . . . Artifact . | . . . . . . . . . . Weapon 27 | . 1 2 . 3 3 1 4 4 9 Energy Gun 3 | . . 1 . . . . . 2 . Energy Cannon 2 | . . . . 1 . . . . 1 Ballistic Gun 11 | . 1 1 . 2 1 . 2 . 4 Ballistic Cannon 9 | . . . . . 2 1 1 2 3 Launcher 2 | . . . . . . . 1 . 1 Special Weapon . | . . . . . . . . . . Impact Weapon . | . . . . . . . . . . Slashing Weapon . | . . . . . . . . . . Piercing Weapon . | . . . . . . . . . . Special Melee Weapon . | . . . . . . . . . . Unidentified Prototypes 4 | . . . . . . . . 3 1 Corrupted Parts 2 | . . . . 2 . . . . . System Corruption 4 | . . . . 4 . . . . . Parts Lost 34 | . 1 4 . 3 . . 5 5 16 Power 6 | . . 1 . 1 . . 1 1 2 Propulsion 6 | . . 1 . 1 . . 1 1 2 Utility 6 | . 1 . . . . . . 1 4 Weapon 16 | . . 2 . 1 . . 3 2 8 Highest Loss Streak 12 | . 1 4 . 2 . . 3 5 12 Average Slot Usage (%) 87 | . 87 86 100 91 92 92 79 78 70 Engine 5 | . 14 14 14 6 3 . 2 1 2 Core 2 | . . . . . 5 7 3 5 . Treads 6 | . 26 2 . . 5 17 . . 5 Wheel 15 | . . 25 28 27 15 5 14 14 2 Device 13 | . 2 7 14 14 18 15 15 14 20 Storage 10 | . 14 14 14 14 9 7 7 7 6 Processor 3 | . . . . . . 6 7 7 6 Energy Gun 2 | . . 7 14 2 . . . 5 . Energy Cannon 1 | . . . . 7 . . . . . Ballistic Gun 14 | . 28 14 14 18 18 12 6 9 5 Ballistic Cannon 9 | . . . . . 17 17 21 10 15 Naked Turns . | . . . . . . . . . . Heaviest Build 83 | 11 26 31 51 57 73 72 72 71 83 Greatest Support 90 | 20 40 40 32 32 62 90 56 56 28 Greatest Overweight (x) 3 | . 1 . 1 3 3 2 2 1 2 Average Overweight (x) . | . . . . 1 2 . 1 1 2 Largest Inventory Capacity 20 | 8 15 15 20 20 20 20 20 20 20 Average Capacity 18 | 8 14 15 15 20 20 20 20 20 20 Most Carried 20 | 6 8 8 11 20 20 20 20 20 17 Average Carried 14 | 6 7 4 7 15 19 19 18 18 11 Final Capacity 20 | 8 15 15 20 20 20 20 20 20 20 Final Carried 20 | 6 8 4 11 20 20 20 15 18 6 Class Distribution -------------------- 41% | Mutant 22% | Skirmisher 21% | Scavenger-Skirmisher 9% | Scavenger-Mutant 5% | Gunner Dominant Class ---------------- Mutant | -10/Materials Mutant | -10/Mines Mutant | -10/Exiles Mutant | -9/Mines Scavenger-Skirmisher | -8/Materials Scavenger-Skirmisher | -7/Factory Skirmisher | -7/Garrison Skirmisher | -7/Storage Gunner | -6/Factory Resources | -11 -10 -10 -10 -9 -8 -7 -7 -7 -6 ----------- Run | Scr Mat Min Exi Min Mat Fac Gar Sto Fac Matter Collected 2740 | 208 79 123 13 160 426 489 364 770 108 Remotely . | . . . . . . . . . . Salvage Created 2778 | 69 86 156 . 210 457 424 380 785 211 Parts 152 | 4 7 11 . 10 29 14 21 43 13 Haulers Intercepted 2 | . . . . . 1 . . 1 . Recyclers Shooed 4 | . . 1 . 1 . 1 . 1 . Parts Field Recycled . | . . . . . . . . . . Retrieved Matter . | . . . . . . . . . . Parts Self-Destructed . | . . . . . . . . . . Prevented . | . . . . . . . . . . Kills | -11 -10 -10 -10 -9 -8 -7 -7 -7 -6 ------- Run | Scr Mat Min Exi Min Mat Fac Gar Sto Fac Combat Hostiles Destroyed 75 | . 6 4 . 3 8 9 25 14 6 Guns 23 | . 6 4 . 3 2 1 1 4 2 Cannons 31 | . . . . . 6 8 8 7 2 AOE 21 | . . . . . . . 16 3 2 Classes Destroyed 15 | 2 1 4 . 1 5 1 . . 1 Worker 5 | . . 2 . 2 1 . . . . Builder 6 | . . 1 . . 1 3 . . 1 Tunneler 2 | 1 . . . . . . . . 1 Hauler 2 | . . . . . 1 . . 1 . Recycler 6 | 1 . . . 1 1 2 . 1 . Watcher 1 | . . . . . 1 . . . . Swarmer 28 | . 6 . . . . 3 15 . 4 Grunt 26 | . . 2 . 2 4 5 10 3 . Brawler 3 | . . . . . 1 . . 2 . Duelist 1 | . . . . 1 . . . . . Sentry 6 | . . . . . 1 . . 5 . Demolisher 2 | . . 2 . . . . . . . Specialist 2 | . . . . . . . . . 2 Hunter 4 | . . . . . 2 . . 2 . Programmer 3 | . . . . . . 1 . 2 . Best Kill Streak 20 | 2 6 5 . 2 4 7 20 3 5 Combat Bots Only 20 | . 6 2 . 1 3 6 20 3 4 Max Kills in Single Turn 3 | 1 1 1 . 1 2 2 3 1 3 Gunslinging . | . . . . . . . . . . Exploded 3 | . . . . . . . 3 1 2 Melee . | . . . . . . . . . . Uniques/NPCs Destroyed . | . . . . . . . . . . Combat | -11 -10 -10 -10 -9 -8 -7 -7 -7 -6 -------- Run | Scr Mat Min Exi Min Mat Fac Gar Sto Fac Damage Taken 6302 | . 308 614 . 128 66 313 1089 1460 2324 Core 1482 | . 59 159 . 21 . 28 92 265 858 Absorbed by Shields . | . . . . . . . . . . Core Remaining (%) 62 | 100 . . . 4 100 . . 45 . Volleys Fired 192 | 4 17 29 . 17 18 21 27 44 15 Largest 4 | 2 2 2 . 2 4 4 4 4 4 Hottest 192 | 40 40 85 . 97 152 172 192 146 172 Shots Fired 507 | 8 34 32 . 23 72 84 77 141 36 Gun 257 | 8 34 32 . 21 36 31 7 78 10 Cannon 240 | . . . . 2 36 53 64 63 22 Launcher 10 | . . . . . . . 6 . 4 Special . | . . . . . . . . . . Kinetic 458 | 8 34 31 . 21 72 84 71 109 28 Thermal 5 | . . 1 . . . . . . 4 Explosive 10 | . . . . . . . 6 . 4 Electromagnetic 34 | . . . . 2 . . . 32 . Robot Hit Streak 12 | 6 4 5 . 7 8 5 5 12 10 Robot Miss Streak 7 | 1 4 1 . 3 7 7 5 4 4 Penetration Max 1 | . . . . 1 1 1 . . . Secondary Targets 3 | . 2 . . 1 . . . . . Max Gunslinging Chain 1 | . 1 . . 1 . . . . . Shots Hit Robots 290 | 6 16 25 . 17 46 40 34 90 16 Core Hits 183 | 4 8 13 . 8 28 28 46 34 14 Critical Kills 2 | . . . . 1 . 1 . . . Critical Parts Destroyed 2 | . . . . 1 . . 1 . . Critical Strikes 13 | . . . . 2 4 3 1 2 1 Destroy 4 | . . . . 2 . 1 1 . . Blast 9 | . . . . . 4 2 . 2 1 Melee Attacks . | . . . . . . . . . . Impact . | . . . . . . . . . . Slashing . | . . . . . . . . . . Piercing . | . . . . . . . . . . Sneak Attacks . | . . . . . . . . . . Combat Hostiles . | . . . . . . . . . . Follow-up Attacks . | . . . . . . . . . . Damage Inflicted 8115 | 48 143 310 . 409 1105 971 2329 1864 936 Guns 2716 | 48 143 310 . 352 474 350 86 807 146 Cannons 3440 | . . . . 57 631 621 919 972 240 Explosions 1959 | . . . . . . . 1324 85 550 Melee . | . . . . . . . . . . Ramming . | . . . . . . . . . . Kinetic 5634 | 48 143 310 . 352 1105 971 1005 1382 318 Thermal 409 | . . . . . . . . 85 324 Explosive 1575 | . . . . . . . 1324 . 251 Electromagnetic 497 | . . . . 57 . . . 397 43 Impact . | . . . . . . . . . . Slashing . | . . . . . . . . . . Piercing . | . . . . . . . . . . Highest Corruption 6 | . 1 1 1 6 . . . 2 2 Average Corruption 2 | . 1 1 1 5 . . . 2 1 Corruption Purged . | . . . . . . . . . . Effects 25 | . 1 3 . 16 . . . 5 . Message Errors 7 | . 1 2 . 2 . . . 2 . Matter Fused 2 | . . . . 2 . . . . . Heat Flow Errors 3 | . . . . 3 . . . . . Energy Discharges 7 | . . . . 6 . . . 1 . Data Loss (minor) 2 | . . 1 . . . . . 1 . Data Loss (major) 1 | . . . . 1 . . . . . Misfires 2 | . . . . 2 . . . . . Weapon Failures 1 | . . . . . . . . 1 . Overload Shots . | . . . . . . . . . . Overflow Damage 368 | . . . . . 1 23 59 20 265 Projectiles 50 | . . . . . 1 23 6 20 . Explosions 318 | . . . . . . . 53 . 265 Melee . | . . . . . . . . . . Knockbacks 24 | . . . . . 5 5 8 6 . Impact . | . . . . . . . . . . Kinetic 23 | . . . . . 5 5 8 5 . Secondary 1 | . . . . . . . . 1 . Self-Inflicted Damage 319 | . . . . . . . 67 52 200 Shots 5 | . . . . . . . 2 1 2 Rammed . | . . . . . . . . . . Targets Rammed . | . . . . . . . . . . Kicked . | . . . . . . . . . . Crushed . | . . . . . . . . . . Highest Temperature 386 | . . . . 150 72 256 305 176 386 Average Temperature 74 | . . . . 82 33 86 107 49 120 Received Heat Transfer 1029 | . . 90 . 24 18 117 378 264 138 Effects 4 | . . . . . . . 2 . 2 Energy Bleed 2 | . . . . . . . 2 . . Interference 2 | . . . . . . . . . 2 Siege Activations . | . . . . . . . . . . Robots Corrupted . | . . . . . . . . . . Combat Hostiles . | . . . . . . . . . . Parts Fried 1 | . . . . . . . . 1 . Impact Corruptions . | . . . . . . . . . . Robots Melted . | . . . . . . . . . . Combat Hostiles . | . . . . . . . . . . Parts Melted . | . . . . . . . . . . Heat Transferred 350 | . . . . . . . . 100 250 Parts Sabotaged . | . . . . . . . . . . Parts Stolen . | . . . . . . . . . . Parts Stripped . | . . . . . . . . . . Power Chain Reactions 2 | . . . . . . . . 2 . Missiles Intercepted . | . . . . . . . . . . Alert | -11 -10 -10 -10 -9 -8 -7 -7 -7 -6 ------- Run | Scr Mat Min Exi Min Mat Fac Gar Sto Fac Peak Influence 862 | 10 151 91 . 40 324 270 848 862 709 Initial 413 | . 6 16 . . 13 147 159 413 322 Average 236 | 5 45 66 . 7 174 177 487 645 522 Maximum Alert Level 3 | . . . . . 1 1 3 3 3 Low Security (%) 55 | 100 100 100 . 100 47 51 11 . . Level 1 21 | . . . . . 52 48 36 . 38 Level 2 14 | . . . . . . . 11 61 59 Level 3 8 | . . . . . . . 40 38 1 Level 4 . | . . . . . . . . . . Level 5 . | . . . . . . . . . . High Security . | . . . . . . . . . . Max Security . | . . . . . . . . . . Squads Dispatched 11 | . . . . 1 1 3 . 4 2 Investigation 2 | . . . . 1 . 1 . . . Extermination 2 | . . . . . . 1 . 1 . Reinforcement 5 | . . . . . 1 1 . 1 2 Assault 1 | . . . . . . . . 1 . Garrison 1 | . . . . . . . . 1 . Intercept . | . . . . . . . . . . Construction Impeded . | . . . . . . . . . . Haulers Reinforced . | . . . . . . . . . . Active Scanning Responses . | . . . . . . . . . . Cargo Convoy Interrupts . | . . . . . . . . . . Stealth | -11 -10 -10 -10 -9 -8 -7 -7 -7 -6 --------- Run | Scr Mat Min Exi Min Mat Fac Gar Sto Fac Distress Signals 5 | . . . . . 5 . . . . Communications Jammed . | . . . . . . . . . . Distress Signals . | . . . . . . . . . . Times Spotted 116 | . 10 11 . 5 17 12 27 22 12 Peak Tracking Total 15 | . 7 12 . 3 5 8 15 5 4 Tactical Retreats 2 | . 1 . . . . . 1 . . Traps | -11 -10 -10 -10 -9 -8 -7 -7 -7 -6 ------- Run | Scr Mat Min Exi Min Mat Fac Gar Sto Fac Traps Triggered 4 | . . . . 1 . 1 1 1 . Indirectly . | . . . . . . . . . . Trap Hack Attempts . | . . . . . . . . . . Triggered . | . . . . . . . . . . Disarmed . | . . . . . . . . . . Reprogrammed . | . . . . . . . . . . Reused . | . . . . . . . . . . Traps Reconfigurated 13 | . . . . . . 5 5 3 . Traps Extracted . | . . . . . . . . . . Installed . | . . . . . . . . . . Triggered . | . . . . . . . . . . Exploded 2 | . . . . . . . . 2 . Machines | -11 -10 -10 -10 -9 -8 -7 -7 -7 -6 ---------- Run | Scr Mat Min Exi Min Mat Fac Gar Sto Fac Machines Disabled 19 | . . . . . 1 1 1 3 13 Max in Single Turn 8 | . . . . . 1 1 1 1 8 Garrison Access 1 | . . . . . . . . 1 . Machines Sabotaged . | . . . . . . . . . . Garrisons Compromised . | . . . . . . . . . . Overloaded Fab Kills . | . . . . . . . . . . Hacking | -11 -10 -10 -10 -9 -8 -7 -7 -7 -6 --------- Run | Scr Mat Min Exi Min Mat Fac Gar Sto Fac Machines Accessed 16 | . 3 . 5 2 2 2 . 1 1 Terminals 6 | . 3 . . . 2 1 . . . Fabricators . | . . . . . . . . . . Repair Stations 1 | . . . . . . . . . 1 Recycling Units . | . . . . . . . . . . Scanalyzers . | . . . . . . . . . . Garrison Access 2 | . . . . . . 1 . 1 . Total Hacks 73 | . 9 . 50 2 4 5 . 1 2 Successful 65 | . 5 . 50 2 3 4 . 1 . Failed 7 | . 4 . . . . 1 . . 2 Catastrophic . | . . . . . . . . . . Database Lockouts 1 | . . . . . 1 . . . . Manual 12 | . 5 . 1 . 4 1 . 1 . Terminals 17 | . 9 . . . 4 4 . . . Fabricators . | . . . . . . . . . . Repair Stations 2 | . . . . . . . . . 2 Recycling Units . | . . . . . . . . . . Scanalyzers . | . . . . . . . . . . Garrison Access 2 | . . . . . . 1 . 1 . Terminal Hacks 57 | . 2 . 50 2 1 2 . . . Record 49 | . . . 49 . . . . . . Robot Schematic 2 | . . . . . . 2 . . . Robot Analysis 2 | . 1 . . . 1 . . . . Open Door 2 | . . . . 2 . . . . . Unreport Threat 1 | . 1 . . . . . . . . EX-Prototype ID Bank 1 | . . . 1 . . . . . . Fabricator Hacks . | . . . . . . . . . . Repair Station Hacks . | . . . . . . . . . . Recycling Unit Hacks . | . . . . . . . . . . Scanalyzer . | . . . . . . . . . . Garrison Access Hacks 2 | . . . . . . 1 . 1 . Unlock Access 1 | . . . . . . 1 . . . Seal Access 1 | . . . . . . . . 1 . Unauthorized Hacks 6 | . 3 . . . 2 1 . . . Terminals 6 | . 3 . . . 2 1 . . . Botnet 6 | . 3 . . . 2 1 . . . Fabricators . | . . . . . . . . . . Repair Stations . | . . . . . . . . . . Recycling Units . | . . . . . . . . . . Scanalyzers . | . . . . . . . . . . Garrison Access . | . . . . . . . . . . Data Cores Recovered . | . . . . . . . . . . Used . | . . . . . . . . . . Hacking Detections 5 | . 2 . . . 2 . . . 1 Full Trace Events 2 | . 2 . . . . . . . . Feedback Events 1 | . 1 . . . . . . . . Corruption 1 | . 1 . . . . . . . . Feedback Blocked . | . . . . . . . . . . Robot Schematics Acquired 2 | . . . . . . 2 . . . Robots Built . | . . . . . . . . . . Authchips . | . . . . . . . . . . Time . | . . . . . . . . . . Total Robot Build Rating . | . . . . . . . . . . Part Schematics Acquired . | . . . . . . . . . . Parts Built . | . . . . . . . . . . Authchips . | . . . . . . . . . . Time . | . . . . . . . . . . Total Part Build Rating . | . . . . . . . . . . Parts Repaired . | . . . . . . . . . . Time . | . . . . . . . . . . Parts Recycled . | . . . . . . . . . . Recycled Matter . | . . . . . . . . . . Retrieved Matter . | . . . . . . . . . . Retrieved Components . | . . . . . . . . . . Parts Scanalyzed . | . . . . . . . . . . Part Schematics Acquired . | . . . . . . . . . . Parts Damaged . | . . . . . . . . . . Bothacking | -11 -10 -10 -10 -9 -8 -7 -7 -7 -6 ------------ Run | Scr Mat Min Exi Min Mat Fac Gar Sto Fac Used RIF Installer 1 | . . . . . . . 1 . . Robots Hacked . | . . . . . . . . . . Non-combat . | . . . . . . . . . . Combat . | . . . . . . . . . . Robot Hacks Applied . | . . . . . . . . . . Relay Couplers Released . | . . . . . . . . . . Robots Rewired . | . . . . . . . . . . Allies Hacked . | . . . . . . . . . . Hacks Repelled . | . . . . . . . . . . Allies | -11 -10 -10 -10 -9 -8 -7 -7 -7 -6 -------- Run | Scr Mat Min Exi Min Mat Fac Gar Sto Fac Total Allies 2 | . . 2 . . . . . . . Largest Group 2 | . . 2 2 . . . . . . Highest-Rated Group 38 | . . 38 38 . . . . . . Highest-Rated Ally 31 | . . 31 31 . . . . . . Total Orders . | . . . . . . . . . . Ally Attacks . | . . . . . . . . . . Total Damage . | . . . . . . . . . . Kills . | . . . . . . . . . . Allies Corrupted . | . . . . . . . . . . Allies Melted . | . . . . . . . . . . Intel | -11 -10 -10 -10 -9 -8 -7 -7 -7 -6 ------- Run | Scr Mat Min Exi Min Mat Fac Gar Sto Fac Robot Analysis Total 2 | . 1 . . . 1 . . . . Derelict Logs Recovered 3 | . . 2 . 1 . . . . . Drone Launches . | . . . . . . . . . . Drone Recoveries . | . . . . . . . . . . Exploration | -11 -10 -10 -10 -9 -8 -7 -7 -7 -6 ------------- Run | Scr Mat Min Exi Min Mat Fac Gar Sto Fac Turns Passed 3814 | 24 331 304 296 761 382 623 287 418 388 Spaces Moved 2170 | 11 178 224 284 442 203 345 127 220 136 Core . | . . . . . . . . . . Treads 466 | . 165 8 . . 37 197 . . 59 Legs 24 | 11 13 . . . . . . . . Wheels 1680 | . . 216 284 442 166 148 127 220 77 Hover . | . . . . . . . . . . Flight . | . . . . . . . . . . Fastest Speed 100 | 120 120 100 100 105 125 115 115 115 130 Average Speed 129 | 120 157 102 101 113 144 148 116 115 212 Slowest Speed 320 | 120 190 160 115 145 235 235 130 115 320 Overloaded Moves . | . . . . . . . . . . Propulsion Burnouts . | . . . . . . . . . . Robots Hopped . | . . . . . . . . . . Cave-ins Triggered . | . . . . . . . . . . Exploration Rate (%) 35 | 2 34 53 65 68 18 9 41 59 5 Regions Visited 9 Branch Regions 4 Pre-discovered Areas 3 | . . 1 1 . . . . 1 . Known Exits Taken 1 | . . . . . . 1 . . . Unknown Exits Taken 7 | 1 1 1 1 1 1 . . 1 . Scrap Searched 2 | . . . . 2 . . . . . Spaces Dug 9 | . . . . 1 . 8 . . . Terrain Destroyed 187 | . . . . 3 6 14 23 30 111 Melee . | . . . . . . . . . . Projectile 52 | . . . . 3 6 14 . 19 10 AOE 135 | . . . . . . . 23 11 101 Terrain Rammed . | . . . . . . . . . . Walls Destroyed . | . . . . . . . . . . Machines Disabled . | . . . . . . . . . . Actions | -11 -10 -10 -10 -9 -8 -7 -7 -7 -6 --------- Run | Scr Mat Min Exi Min Mat Fac Gar Sto Fac Total 2820 | 15 199 267 290 680 248 406 210 296 209 Wait 324 | . 1 8 . 200 4 14 42 17 38 Move 2162 | 10 177 223 283 441 202 345 126 219 136 Hop . | . . . . . . . . . . Pick Up 37 | . . . 6 12 5 7 . 4 3 Fast Attach 24 | 1 . 2 . 3 7 4 2 4 1 Attach 25 | . . 4 . . 2 1 3 . 15 Detach . | . . . . . . . . . . Swap 13 | . 4 . 1 3 1 1 1 1 1 Drop 35 | . . 1 . 4 9 13 1 7 . Fire 192 | 4 17 29 . 17 18 21 27 44 15 Melee . | . . . . . . . . . . Ram . | . . . . . . . . . . Kick . | . . . . . . . . . . Crush . | . . . . . . . . . . Escape Stasis 8 | . . . . . . . 8 . . Rewire . | . . . . . . . . . . Trap . | . . . . . . . . . . Miscellaneous . | . . . . . . . . . . Route ------- -11/Scrapyard -10/Materials (discovered 2 exits: [*Mat] / [*Min]) -10/Mines (discovered 2 exits: [*Mat] / *Exi) -10/Exiles -9/Mines -8/Materials -7/Factory -7/Garrison -7/Storage -6/Factory History --------- Turn | Location | Event 9 | -11/Scrapyard | Discovered new exit (range 3) 25 | -11/Scrapyard | Entered Materials 239 | -10/Materials | Discovered new exit (range 4) 258 | -10/Materials | Discovered new exit (range 14) 302 | -10/Materials | Build established: Mutant 356 | -10/Materials | Entered Mines 357 | -10/Mines | Assembled infested the area 376 | -10/Mines | Core integrity fell below 50% 382 | -10/Mines | Core integrity fell below 20% 405 | -10/Mines | Discovered new exit (range 8) 414 | -10/Mines | Lost 4 parts (1p1n2w) 624 | -10/Mines | Learned Materials stockpile data 655 | -10/Mines | Deemed a non-threat by the Exiles lab entrance 655 | -10/Mines | Discovered new exit (range 5) 660 | -10/Mines | Entered Exiles 660 | -10/Exiles | Accompanied by 2 allies 690 | -10/Exiles | Led the pair of lost Derelicts to a safe place 691 | -10/Exiles | Met 8R-AWN 707 | -10/Exiles | Met EX-HEX 739 | -10/Exiles | Met EX-BIN 761 | -10/Exiles | Aligned with FarCom system 762 | -10/Exiles | Given EX-Vault access code 804 | -10/Exiles | Opened EX-Vault 811 | -10/Exiles | Found Trap Reconfigurator 834 | -10/Exiles | Warned to stay clear of 0b10 Research branches 863 | -10/Exiles | Met EX-DEC 879 | -10/Exiles | Learned location of Zion (-6) 939 | -10/Exiles | Discovered new exit (range 14) 956 | -10/Exiles | Left Exiles lab with Trap Reconfigurator 956 | -10/Exiles | Entered Mines 983 | -9/Mines | Met a Derelict who couldn't figure out how to use a Trap Extractor 1207 | -9/Mines | Learned Materials emergency access door positions 1209 | -9/Mines | Received a Rocket Launcher from a helpful Derelict 1601 | -9/Mines | A weapon hastily lodged in a ceiling crevice suddenly fell to the ground 1651 | -9/Mines | Build established: Scavenger-Mutant 1671 | -9/Mines | Discovered new exit (range 12) 1684 | -9/Mines | Met a Derelict shopkeep closing up shop 1717 | -9/Mines | Entered Materials 1717 | -8/Materials | Evolved 4 slots: Propulsion x1, Utility x1, Weapon x2 1743 | -8/Materials | Central database locked down 1881 | -8/Materials | Discovered new exit (range 9) 2099 | -8/Materials | Entered Factory 2099 | -7/Factory | Evolved 2 slots: Propulsion x1, Utility x1 2141 | -7/Factory | Build established: Scavenger-Skirmisher 2722 | -7/Factory | Identified exit to Garrison 2722 | -7/Factory | Entered Garrison 2733 | -7/Garrison | Triggered checkpoint 2805 | -7/Garrison | Build established: Skirmisher 2846 | -7/Garrison | Triggered checkpoint 2851 | -7/Garrison | Triggered checkpoint 2895 | -7/Garrison | Triggered checkpoint 2916 | -7/Garrison | Destroyed 20 combat bots 2917 | -7/Garrison | Lost 3 parts (1p2w) 2986 | -7/Garrison | Discovered new exit (range 9) 3004 | -7/Garrison | Installed Relay Interface Framework 3009 | -7/Garrison | Entered Storage 3217 | -7/Storage | Learned location of Armory (-3) 3376 | -7/Storage | Discovered new exit (range 10) 3409 | -7/Storage | First assault squad dispatched 3426 | -7/Storage | Core integrity fell below 50% 3427 | -7/Storage | Entered Factory 3427 | -6/Factory | Evolved 2 slots: Utility x2 3432 | -6/Factory | Lost 5 parts (1p1n1u2w) 3645 | -6/Factory | Lost 4 parts (1p1n1u1w) 3778 | -6/Factory | Spotted B-75 Beast 3803 | -6/Factory | Core integrity fell below 50% 3810 | -6/Factory | Core integrity fell below 20% 3815 | -6/Factory | Destroyed by B-75 Beast with Heavy Plasma Cannon Last Messages --------------- 03788_ Weapon Cycler destroyed. 03788_ Critical hit (Blast). 03790_ Knocked back. 03791_ Acquired 6 matter. 03792_ Prc. Grenade Launcher destroyed. 03792_ Adv. Assault Cannon destroyed. 03794_ Slug penetrates P-60 Hacker. 03796_ Kinecellerator destroyed. 03798_ H-61 Shepherd calls for reinforcements. 03798_ ALERT: Hostile activity reported, dispatching reinforcements to area. 03798_ Knocked back. 03802_ Power Conduit explodes. 03803_ Penetrated by Slug. 03803_ Imp. Deuterium Engine destroyed. 03803_ Trap Reconfigurator destroyed. 03806_ Hvy. Plasma Cannon destroyed. 03810_ Gauss Rifle destroyed. 03812_ Adv. Assault Cannon destroyed. 03813_ The unstable cave ceiling collapses. Map ----- +----------------------------------------------------+ | ????????????????????????????????????????????????? | | ?????????????????????????????????????????????????? | | #????????????????????????????????????????????????? | | ###??????????????????????????????????????????????? | | #??????????????????????????????????????????????? | | ""##?????????????????????????????????????????????? | | "#? ???????????????????????????????????????? | | "## #??????????????????????????????????????? | | "## #???????? ?????????????????????????????? | | "## #??????# ?????????????????????????????? | | "## #??????# ??? ? ???????????????????? | | ### #??????# ]] ?????????????????? | | #?# #??????# ??????????????? | | #?# #??????# #??????????????? | | #?# #??????# ###????????????? | | #?# #??????# ##???????????? | | #?# #??????# #???????????? | | ### ##?????# ##??????????? | | #### #?????# BB #??????????? | | #### #?????# BB ##+#????????? | | ####### # ????????? | | / ?????????? | | ####+### ???????????? | | #### #?# #??????????????? | | ???# #?# #??????????????? | | ???#########?# %@ #??????????????? | | ?????????????# +??????????????? | | ?????????????# #??????????????? | | ?????????????# #??????????????? | | ????????????#; #??????????????? | | ????????????## #??????????????? | | ?????????????# #??????????????? | | ?????????????# ;#?????????????? | | ?????????????# p ; !????????????? | | ?????????????# ; !!???????????? | | ??????????????#####; ;; ; !! ??????????? | | ??????????????????#;; ; p # H ??????????? | | ??????????????????""####### ; ???????????? | | ??????????????????????????? # ?????????????? | | ??????????????????????????? ???????????????? | | ??????????????????????????? ??????????????????? | | ?????????????????????????????????????????????????? | | ?????????????????????????????????????????????????? | | ?????????????????????????????????????????????????? | | ?????????????????????????????????????????????????? | | ?????????????????????????????????????????????????? | | ?????????????????????????????????????????????????? | | ?????????????????????????????????????????????????? | | ?????????????????????????????????????????????????? | | ?????????????????????????????????????????????????? | +----------------------------------------------------+ Best States ------------- Heat Dissipation 48 Energy Generation 18 Energy Capacity 300 Matter Stores 300 Matter Capacity 300 Sight Range 16 Terrain Scan Range 16 Terrain Scan Density 10 Weapon Cycling 15 Evasion (%) 50 Recoil Reduction 4 Matter Filtering 30 Kinecelleration 30 Salvage Targeting 2 Item Schematics ----------------- None Robot Schematics ------------------ G-47 Trooper | -7/Factory | Hacked B-48 Gladiator | -7/Factory | Hacked Fabricated ------------ Nothing Alien Tech Used ----------------- None Achievements -------------- None Challenges ------------ None Game ------ Seed CompactExplosiveAutocannon Manual? 0 Play Time 00:48:51 Cumulative 94.7 hours Start 2021.12.10 @ 20:10:04 End 2021.12.10 @ 20:58:53 Sessions 1 Manual Loads 0 Difficulty Rogue Special Mode None Game No. 166 Rogue 161 Adventurer 0 Explorer 5 Win Type - Total 0 Types 0/0/0/0/0/0/0/0/0 Lore% 38 Gallery% 53 Achievement% 42 Wizard Run 0 Options --------- ASCII 0 Keyboard 0 Movement Mouse Keybinds 0 Fullscreen 2 Font 18/Smallcaps Map View 76x50 Tactical HUD 1 Map Filters NONE Filters NONE Steam X RUN: 0c536809-98fd-405d-b2b1-5d7822093318